fUST/lending_fUST_20251006
["ID","MTS","AMOUNT","RATE_DAILY","PERIOD"]
[389615158,1759749040202,-500.0,0.00018873,2]
[389615159,1759749040211,-501.00167003,0.00018873,2]
[389615160,1759749040219,-500.0,0.00018873,2]
[389615161,1759749040228,-158.077196,0.0001888,2]
[389615162,1759749040237,-151.0,0.00018889,2]
[389615163,1759749040248,-248.04596635,0.00018889,2]
[389615164,1759749040257,-351.45523641,0.00018889,2]
[389615165,1759749040267,-18603.8837,0.00018889,2]
[389615166,1759749040277,-1211.33,0.0001889,3]
[389615167,1759749040287,-746.52,0.0001889,3]
[389615168,1759749040296,-373.26,0.0001889,3]
[389615169,1759749040305,-186.63,0.0001889,3]
[389615170,1759749040314,-559.94,0.0001889,3]
[389615171,1759749040324,-84796.03904946,0.000189,2]
[389615407,1759749045785,-533.6495537,0.00018856,2]
[389615408,1759749045794,-234.17717776,0.00018856,2]
[389615409,1759749045803,-8216.38265051,0.000189,2]
[389615410,1759749045858,-20583.05812405,0.000189,2]
[389615411,1759749045869,-2430.96192476,0.000189,2]
[389615419,1759749959610,-154.38895625,0.00015878,2]
[389615420,1759749961398,-199.65,0.00015878,2]
[389615421,1759749964285,-211.96067193,0.00015878,2]
[389615422,1759749966158,-347.84656592,0.00015878,2]
[389615424,1759749968966,-321.4344647,0.00015878,2]
[389615425,1759749969160,-628.1472187,0.00015878,2]
[389615426,1759749981818,300.0,0.00015878,2]
[389615427,1759750005423,-300.0,0.00015878,2]
[389615428,1759750029120,-200.0,0.00015878,2]
[389615429,1759750029467,-100.0,0.00015878,2]
[389615456,1759750051283,18773.2590274,0.00015,10]
[389615457,1759750060575,-300.0,0.00015878,2]
[389615458,1759750072809,300.0,0.00015878,2]
[389615462,1759750096218,-273.25091656,0.00015878,2]
[389615463,1759750097649,-26.74908344,0.00015878,2]
[389615472,1759750149549,-265.03958019,0.00015878,2]
[389615473,1759750150954,-304.70380755,0.00015878,2]
[389615474,1759750153261,-993.68448976,0.00015878,2]
[389615475,1759750171520,1563.4278775,0.00015878,2]
[389615476,1759750194358,-229.80886524,0.00015878,2]
[389615477,1759750200566,-1333.61901226,0.00015878,2]
[389615478,1759750216135,1563.4278775,0.00015878,2]
[389615511,1759750232054,-300.0,0.00016038,2]
[389615513,1759750232064,-1263.4278775,0.00016038,2]
[389615515,1759750232073,-240.57,0.000162,2]
[389615517,1759750232082,-771.3521225,0.000162,2]
[389615521,1759750232110,-251.505755,0.000162,2]
[389615523,1759750232119,-324.0,0.00016438,2]
[389615525,1759750232127,-223.12149871,0.00016438,2]
[389615553,1759750232356,-1163.83314713,0.00016438,2]
[389615680,1759750238109,-97.96140916,0.00016438,2]
[389615681,1759750238119,-1200.0,0.00016498,2]
[389615682,1759750238128,-300.0,0.00016499,2]
[389615683,1759750238138,-300.0,0.00016499,2]
[389615684,1759750238147,-300.0,0.00016499,2]
[389615685,1759750238156,-300.0,0.00016499,2]
[389615686,1759750238165,-150.0,0.000165,2]
[389615687,1759750238174,-150.0,0.000165,2]
[389615688,1759750238183,-261.33,0.000165,2]
[389615689,1759750238192,-151.0,0.00016586,2]
[389615690,1759750238202,-185.89253194,0.00016586,2]
[389615691,1759750238212,-1200.0,0.00016596,2]
[389615692,1759750238221,-348.0,0.00016838,2]
[389615693,1759750238230,-1000.0,0.00016958,2]
[389615694,1759750238240,-372.0,0.00017238,2]
[389615695,1759750238251,-396.0,0.00017638,2]
[389615696,1759750238260,-178.3768899,0.00017885,2]
[389615697,1759750238270,-420.0,0.0001803,2]
[389615698,1759750238280,-300.0,0.0001803,2]
[389615699,1759750238290,-420.0,0.00018038,2]
[389615700,1759750238300,-592.2277458,0.00018119,2]
[389615701,1759750238312,-607.7722542,0.00018119,2]
[389615702,1759750238321,-213.79856484,0.00018429,2]
[389615703,1759750238333,-823.75320258,0.00018429,2]
[389615704,1759750238343,-162.7020905,0.00018431,2]
[389615705,1759750238353,-153.2733732,0.00018431,2]
[389615706,1759750238362,-1305.8872606,0.00018431,2]
[389615707,1759750238372,-444.0,0.00018438,2]
[389615708,1759750238382,-151.0,0.00018492,2]
[389615709,1759750238391,-5235.87965275,0.00018492,2]
[389615893,1759750240239,-13368.00404725,0.00018492,2]
[389615895,1759750240250,-293.61728183,0.00018718,2]
[389615897,1759750240259,-160.0,0.00018723,2]
[389615899,1759750240268,-533.6495537,0.00018723,2]
[389615901,1759750240276,-234.17717776,0.00018723,2]
[389615903,1759750240285,-31052.91909781,0.000188,2]
[389615905,1759750240294,-2170.88512352,0.000188,2]
[389615907,1759750240303,-44516.9184799,0.000188,2]
[389615935,1759750240561,-2929.75806111,0.000188,2]
[389615938,1759750240581,-15139.79672182,0.000188,2]
[389615940,1759750240591,-3189.889427,0.000188,2]
[389615941,1759750240599,-151.0,0.000188,2]
[389615943,1759750240609,-151.0,0.000188,2]
[389615945,1759750240617,-307.6420915,0.000188,2]
[389616506,1759750246018,-1987.05048213,0.000188,2]
[389616508,1759750246029,-895.19685337,0.000188,2]
[389616510,1759750246039,-151.0,0.000188,2]
[389616512,1759750246048,-3189.889427,0.000188,2]
[389616514,1759750246057,-3189.889427,0.000188,2]
[389616516,1759750246067,-151.0,0.000188,2]
[389616518,1759750246076,-151.0,0.000188,2]
[389616520,1759750246085,-151.0,0.000188,2]
[389616522,1759750246094,-151.0,0.000188,2]
[389616524,1759750246103,-151.0,0.000188,2]
[389616525,1759750246112,-151.0,0.000188,2]
[389616527,1759750246123,-151.0,0.000188,2]
[389616529,1759750246133,-141.86195269,0.000188,2]
[389616532,1759750246145,-107.18797531,0.000188,2]
[389616534,1759750246156,-151.0,0.000188,2]
[389616536,1759750246165,-151.0,0.000188,2]
[389616538,1759750246175,-151.0,0.000188,2]
[389616540,1759750246184,-151.870907,0.000188,2]
[389616543,1759750246194,-151.0,0.000188,2]
[389616544,1759750246203,-151.0,0.000188,2]
[389616546,1759750246212,-151.0,0.000188,2]
[389616548,1759750246220,-22.27591847,0.00018823,2]
[389616552,1759750246244,-217.54409161,0.00018823,2]
[389616554,1759750246255,-284.45590839,0.00018838,2]
[389616556,1759750246266,-183.54409161,0.00018838,2]
[389616558,1759750246275,-151.0,0.00018838,2]
[389616560,1759750246285,-151.0,0.00018838,2]
[389616562,1759750246294,-151.0,0.00018838,2]
[389616564,1759750246304,-500.0,0.00018873,2]
[389616566,1759750246314,-500.0,0.00018873,2]
[389616568,1759750246323,-500.0,0.00018873,2]
[389616570,1759750246332,-510.12610584,0.00018873,2]
[389616572,1759750246341,-448.72468979,0.00018873,2]
[389616574,1759750246352,-51.27531021,0.00018873,2]
[389616576,1759750246361,-500.0,0.00018873,2]
[389616578,1759750246370,-500.0,0.00018873,2]
[389616580,1759750246379,-500.0,0.00018873,2]
[389616582,1759750246388,-500.6200462,0.00018873,2]
[389616584,1759750246397,-500.0,0.00018873,2]
[389616586,1759750246406,-500.0,0.00018873,2]
[389616588,1759750246416,-500.0,0.00018873,2]
[389616590,1759750246426,-500.0,0.00018873,2]
[389616592,1759750246435,-500.0,0.00018873,2]
[389616593,1759750246444,-500.0,0.00018873,2]
[389616595,1759750246453,-500.0,0.00018873,2]
[389616597,1759750246466,-375.59900605,0.00018873,2]
[389616599,1759750246475,-425.39880796,0.00018873,2]
[389616601,1759750246486,-74.6110503,0.00018873,2]
[389616603,1759750246496,-500.0,0.00018873,2]
[389616605,1759750246508,-500.0,0.00018873,2]
[389616607,1759750246517,-500.0,0.00018873,2]
[389616609,1759750246526,-500.0,0.00018873,2]
[389616611,1759750246535,-500.0,0.00018873,2]
[389616613,1759750246544,-500.0,0.00018873,2]
[389616615,1759750246556,-158.8953309,0.00018873,2]
[389616617,1759750246564,-151.0,0.00018873,2]
[389616619,1759750246574,-151.0,0.00018877,2]
[389616621,1759750246584,-151.0,0.00018877,2]
[389616623,1759750246593,-151.0,0.00018877,2]
[389616625,1759750246603,-151.0,0.00018877,2]
[389616627,1759750246612,-151.0,0.00018877,2]
[389616629,1759750246621,-151.0,0.00018877,2]
[389616631,1759750246631,-155.532854,0.00018889,2]
[389616633,1759750246640,-235.264245,0.00018889,2]
[389616635,1759750246648,-235.264245,0.00018889,2]
[389616637,1759750246658,-235.264245,0.00018889,2]
[389616639,1759750246667,-235.264245,0.00018889,2]
[389616641,1759750246676,-151.0,0.00018889,2]
[389616642,1759750246686,-151.0,0.00018889,2]
[389616645,1759750246696,-151.932092,0.00018889,2]
[389616647,1759750246705,-395.065181,0.00018889,2]
[389616649,1759750246715,-395.065181,0.00018889,2]
[389616651,1759750246724,-395.065181,0.00018889,2]
[389616652,1759750246733,-395.065181,0.00018889,2]
[389616654,1759750246743,-151.0,0.00018889,2]
[389616656,1759750246751,-151.0,0.00018889,2]
[389616658,1759750246763,-151.0,0.00018889,2]
[389616660,1759750246772,-154.55074,0.00018889,2]
[389616662,1759750246782,-151.0,0.00018889,2]
[389616664,1759750246791,-215.381821,0.00018889,2]
[389616666,1759750246800,-151.0,0.00018889,2]
[389616668,1759750246811,-151.0,0.00018889,2]
[389616670,1759750246820,-151.0,0.00018889,2]
[389616672,1759750246829,-151.0,0.00018889,2]
[389616674,1759750246839,-151.0,0.00018889,2]
[389616676,1759750246848,-151.0,0.00018889,2]
[389616678,1759750246857,-151.0,0.00018889,2]
[389616680,1759750246866,-151.0,0.00018889,2]
[389616682,1759750246875,-151.0,0.00018889,2]
[389616684,1759750246884,-544.20234057,0.00018889,2]
[389617555,1759750568591,500.0,0.0002876,120]
[389617556,1759750644611,5000.0,0.0002012,9]
[389617581,1759750653265,5000.0,0.0002012,9]
[389617589,1759750669418,5000.0,0.0002012,9]
[389617590,1759750677434,3746.28849,0.0002012,9]
[389618158,1759750813016,-240.57,0.00017127,2]
[389618159,1759750813040,-300.0,0.00017127,2]
[389618160,1759750813064,-240.57,0.000173,2]
[389618161,1759750813088,-324.0,0.00017527,2]
[389618162,1759750813113,-300.0,0.00017652,2]
[389618163,1759750813138,-300.0,0.00017652,2]
[389618164,1759750813163,-1200.0,0.00017652,2]
[389618165,1759750813188,-8689.17,0.00017653,2]
[389618166,1759750813212,-1200.0,0.00017862,2]
[389618167,1759750813238,-189.1441668,0.00017864,2]
[389618168,1759750813265,-348.0,0.00017927,2]
[389618169,1759750813302,-372.0,0.00018327,2]
[389618170,1759750813338,-160.0,0.00018388,2]
[389618171,1759750813370,-533.6495537,0.00018388,2]
[389618172,1759750813394,-234.17717776,0.00018388,2]
[389618173,1759750813426,-293.61728183,0.00018388,2]
[389618174,1759750813480,-778.16382557,0.00018429,2]
[389618175,1759750813509,-396.0,0.00018727,2]
[389618176,1759750813554,-151.0,0.000188,2]
[389618177,1759750813596,-151.0,0.000188,2]
[389618178,1759750813626,-151.0,0.000188,2]
[389618179,1759750813679,-229.521399,0.000188,2]
[389618180,1759750813704,-2041.58410715,0.000188,2]
[389618181,1759750813730,-41724.31550856,0.000188,2]
[389618182,1759750813754,-160.0,0.0001882,2]
[389618183,1759750813780,-151.0,0.00018838,2]
[389618184,1759750813804,-151.0,0.00018838,2]
[389618185,1759750813828,-151.0,0.00018838,2]
[389618186,1759750813853,-311.21837048,0.0001885,2]
[389618187,1759750813878,-501.52920836,0.00018873,2]
[389618188,1759750813901,-500.0,0.00018873,2]
[389618189,1759750813925,-500.0,0.00018873,2]
[389618190,1759750813949,-500.0,0.00018873,2]
[389618191,1759750813975,-500.0,0.00018873,2]
[389618192,1759750813999,-503.31128271,0.00018873,2]
[389618193,1759750814024,-500.0,0.00018873,2]
[389618194,1759750814048,-500.0,0.00018873,2]
[389618195,1759750814070,-500.0,0.00018873,2]
[389618196,1759750814094,-500.0,0.00018873,2]
[389618197,1759750814118,-514.31782585,0.00018873,2]
[389618198,1759750814141,-500.0,0.00018873,2]
[389618199,1759750814165,-500.0,0.00018873,2]
[389618200,1759750814192,-500.0,0.00018873,2]
[389618201,1759750814217,-500.0,0.00018873,2]
[389618202,1759750814243,-500.0,0.00018873,2]
[389618203,1759750814268,-500.0,0.00018873,2]
[389618204,1759750814292,-500.0,0.00018873,2]
[389618205,1759750814314,-18603.8837,0.00018883,2]
[389618206,1759750814338,-323.5194455,0.00018888,7]
[389618207,1759750814361,-151.0,0.00018889,2]
[389618208,1759750814384,-151.0,0.00018889,2]
[389618209,1759750814408,-151.0,0.00018889,2]
[389618210,1759750814430,-151.0,0.00018889,2]
[389618211,1759750814454,-151.0,0.00018889,2]
[389618212,1759750814477,-151.0,0.00018889,2]
[389618213,1759750814500,-183.944655,0.00018889,2]
[389618214,1759750814523,-151.0,0.00018889,2]
[389618215,1759750814546,-151.0,0.00018889,2]
[389618216,1759750814584,-151.0,0.00018889,2]
[389618217,1759750814608,-151.0,0.00018889,2]
[389618218,1759750814634,-151.0,0.00018889,2]
[389618219,1759750814660,-151.0,0.00018889,2]
[389618220,1759750814684,-151.0,0.00018889,2]
[389618221,1759750814707,-151.0,0.00018889,2]
[389618222,1759750814733,-151.0,0.00018889,2]
[389618223,1759750814757,-151.0,0.00018889,2]
[389618224,1759750814779,-151.0,0.00018889,2]
[389618225,1759750814803,-198.00641291,0.00018889,2]
[389618226,1759750814827,-301.28250478,0.00018889,2]
[389618227,1759750814850,-978.0,0.00018889,2]
[389618228,1759750814874,-151.0,0.00018889,2]
[389618229,1759750814897,-151.0,0.00018889,2]
[389618230,1759750814921,-253.65687441,0.00018889,2]
[389618231,1759750814944,-151.0,0.00018889,2]
[389618232,1759750814968,-151.0,0.00018889,2]
[389618233,1759750814992,-151.0,0.00018889,2]
[389618234,1759750815016,-158.77379603,0.00018889,2]
[389618235,1759750815039,-151.0,0.00018889,2]
[389618236,1759750815228,-151.0,0.00018889,2]
[389618237,1759750815254,-500.0,0.00018889,2]
[389618238,1759750815278,-151.0,0.0001889,3]
[389618239,1759750815301,-151.0,0.0001889,3]
[389618240,1759750815325,-151.0,0.0001889,3]
[389618241,1759750815347,-301.999999,0.0001889,3]
[389618242,1759750815369,-151.0,0.0001889,3]
[389618243,1759750815393,-151.0,0.0001889,3]
[389618244,1759750815416,-151.29688684,0.0001889,3]
[389618245,1759750815438,-151.09403224,0.0001889,3]
[389618246,1759750815462,-198.3767721,0.0001889,3]
[389618247,1759750815486,-927.3,0.0001889,3]
[389618248,1759750815511,-551.72,0.0001889,3]
[389618249,1759750815536,-275.86,0.0001889,3]
[389618250,1759750815561,-827.61,0.0001889,3]
[389618251,1759750815586,-3125.670871,0.00018894,2]
[389618252,1759750815609,-151.0,0.00018894,2]
[389618253,1759750815632,-151.0,0.00018894,2]
[389618254,1759750815660,-151.0,0.00018894,2]
[389618255,1759750815685,-151.0,0.00018894,2]
[389618256,1759750815710,-151.0,0.00018894,2]
[389618257,1759750815735,-151.0,0.00018894,2]
[389618258,1759750815759,-151.0,0.00018894,2]
[389618259,1759750815782,-151.0,0.00018894,2]
[389618260,1759750815806,-151.0,0.00018894,2]
[389618261,1759750815832,-174.345799,0.00018894,2]
[389618262,1759750815856,-287.883654,0.00018894,2]
[389618263,1759750815880,-174.345799,0.00018894,2]
[389618264,1759750815902,-174.345799,0.00018894,2]
[389618265,1759750815926,-174.345799,0.00018894,2]
[389618266,1759750815949,-151.0,0.00018894,2]
[389618267,1759750815973,-151.0,0.00018894,2]
[389618268,1759750815998,-151.0,0.00018894,2]
[389618269,1759750816021,-151.0,0.00018894,2]
[389618270,1759750816045,-151.0,0.00018894,2]
[389618271,1759750816068,-151.0,0.00018894,2]
[389618272,1759750816092,-175.06219493,0.00018894,2]
[389618273,1759750816116,-292.12175045,0.00018894,2]
[389618274,1759750816143,-197.452558,0.00018894,2]
[389618275,1759750816166,-187.316008,0.00018894,2]
[389618276,1759750816190,-166.0,0.00018895,2]
[389618277,1759750816214,-329.0,0.00018895,2]
[389618278,1759750816239,-329.0,0.00018895,2]
[389618279,1759750816262,-151.0,0.00018895,2]
[389618280,1759750816286,-151.0,0.00018895,2]
[389618281,1759750816308,-151.0,0.00018895,2]
[389618282,1759750816332,-151.0,0.00018895,2]
[389618283,1759750816355,-151.0,0.00018895,2]
[389618284,1759750816379,-151.0,0.00018895,2]
[389618285,1759750816404,-151.0,0.00018895,2]
[389618286,1759750816428,-151.0,0.00018899,2]
[389618287,1759750816453,-151.0,0.00018899,2]
[389618288,1759750816477,-159.479527,0.00018899,2]
[389618289,1759750816501,-2549.02592,0.00018899,2]
[389618290,1759750816524,-2549.02592,0.00018899,2]
[389618291,1759750816549,-2549.02592,0.00018899,2]
[389618292,1759750816574,-2549.02592,0.00018899,2]
[389618293,1759750816598,-151.0,0.00018899,2]
[389618294,1759750816620,-151.0,0.00018899,2]
[389618295,1759750816646,-151.0,0.00018899,2]
[389618296,1759750816669,-257.465,0.00018899,2]
[389618297,1759750816696,-500.0,0.00018899,2]
[389618298,1759750816723,-106196.98505834,0.000189,2]
[389618299,1759750816747,-271.425545,0.000189,2]
[389618300,1759750816772,-151.590137,0.000189,2]
[389618301,1759750816797,-151.0,0.000189,2]
[389618302,1759750816821,-151.0,0.000189,2]
[389618303,1759750816845,-151.0,0.000189,2]
[389618304,1759750816869,-151.868962,0.000189,2]
[389618305,1759750816892,-151.0,0.000189,2]
[389618306,1759750816916,-151.0,0.000189,2]
[389618307,1759750816940,-329.0,0.000189,2]
[389618308,1759750816967,-329.0,0.000189,2]
[389618309,1759750816991,-329.0,0.000189,2]
[389618310,1759750817015,-329.0,0.000189,2]
[389618311,1759750817041,-329.0,0.000189,2]
[389618312,1759750817065,-151.0,0.000189,2]
[389618313,1759750817091,-151.0,0.000189,2]
[389618314,1759750817116,-329.0,0.000189,2]
[389618315,1759750817139,-151.0,0.000189,2]
[389618316,1759750817162,-162.237056,0.000189,2]
[389618317,1759750817184,-172.0,0.000189,2]
[389618318,1759750817207,-173.57954123,0.000189,2]
[389618319,1759750817231,-151.0,0.000189,2]
[389618320,1759750817260,-151.0,0.000189,2]
[389618321,1759750817285,-151.0,0.000189,2]
[389618322,1759750817309,-151.0,0.000189,2]
[389618323,1759750817331,-151.0,0.000189,2]
[389618324,1759750817353,-151.0,0.000189,2]
[389618325,1759750817375,-151.0,0.000189,2]
[389618326,1759750817398,-155.90544,0.000189,2]
[389618327,1759750817420,-151.0,0.000189,2]
[389618328,1759750817443,-151.0,0.000189,2]
[389618329,1759750817466,-151.0,0.000189,2]
[389618330,1759750817490,-151.0,0.000189,2]
[389618331,1759750817513,-151.0,0.000189,2]
[389618332,1759750817536,-151.0,0.000189,2]
[389618333,1759750817559,-151.0,0.000189,2]
[389618334,1759750817583,-151.0,0.000189,2]
[389618335,1759750817606,-151.0,0.000189,2]
[389618336,1759750817629,-151.0,0.000189,2]
[389618337,1759750817657,-151.0,0.000189,2]
[389618338,1759750817681,-151.0,0.000189,2]
[389618339,1759750817706,-221.369747,0.000189,2]
[389618340,1759750817732,-151.0,0.000189,2]
[389618341,1759750817757,-151.0,0.000189,2]
[389618342,1759750817783,-213.016442,0.000189,2]
[389618343,1759750817808,-151.0,0.000189,2]
[389618344,1759750817831,-151.0,0.000189,2]
[389618345,1759750817855,-151.0,0.000189,2]
[389618346,1759750817879,-258.764001,0.000189,2]
[389618347,1759750817902,-151.0,0.000189,2]
[389618348,1759750817926,-151.0,0.000189,2]
[389618349,1759750817950,-151.0,0.000189,2]
[389618350,1759750817974,-174.345799,0.000189,2]
[389618351,1759750817997,-151.0,0.000189,2]
[389618352,1759750818020,-174.345799,0.000189,2]
[389618353,1759750818043,-174.345799,0.000189,2]
[389618354,1759750818066,-174.345799,0.000189,2]
[389618355,1759750818090,-174.345799,0.000189,2]
[389618356,1759750818114,-174.345799,0.000189,2]
[389618357,1759750818138,-174.345799,0.000189,2]
[389618358,1759750818162,-174.345799,0.000189,2]
[389618359,1759750818185,-174.345799,0.000189,2]
[389618360,1759750818209,-174.345799,0.000189,2]
[389618361,1759750818232,-174.345799,0.000189,2]
[389618362,1759750818258,-174.345799,0.000189,2]
[389618363,1759750818280,-174.345799,0.000189,2]
[389618364,1759750818304,-174.345799,0.000189,2]
[389618365,1759750818329,-174.345799,0.000189,2]
[389618366,1759750818353,-174.345802,0.000189,2]
[389618367,1759750818516,-151.0,0.000189,2]
[389618368,1759750818541,-151.0,0.000189,2]
[389618369,1759750818564,-151.0,0.000189,2]
[389618370,1759750818587,-151.0,0.000189,2]
[389618371,1759750818611,-151.0,0.000189,2]
[389618372,1759750818637,-151.0,0.000189,2]
[389618373,1759750818664,-151.0,0.000189,2]
[389618374,1759750818690,-151.0,0.000189,2]
[389618375,1759750818715,-151.0,0.000189,2]
[389618376,1759750818741,-212.71412,0.000189,2]
[389618377,1759750818765,-151.0,0.000189,2]
[389618378,1759750818790,-151.824812,0.000189,2]
[389618379,1759750818814,-162.2613537,0.000189,2]
[389618380,1759750818836,-151.0,0.000189,2]
[389618381,1759750818860,-151.0,0.000189,2]
[389618382,1759750818882,-151.0,0.000189,2]
[389618383,1759750818905,-151.0,0.000189,2]
[389618384,1759750818927,-152.242383,0.000189,2]
[389618385,1759750818950,-152.12179,0.000189,2]
[389618386,1759750818973,-151.0,0.000189,2]
[389618387,1759750818998,-151.0,0.000189,2]
[389618388,1759750819022,-151.0,0.000189,2]
[389618389,1759750819046,-151.634143,0.000189,2]
[389618390,1759750819070,-151.0,0.000189,2]
[389618391,1759750819094,-151.0,0.000189,2]
[389618392,1759750819121,-151.0,0.000189,2]
[389618393,1759750819147,-151.0,0.000189,2]
[389618394,1759750819175,-151.0,0.000189,2]
[389618395,1759750819199,-151.0,0.000189,2]
[389618396,1759750819225,-151.0,0.000189,2]
[389618397,1759750819249,-151.0,0.000189,2]
[389618398,1759750819271,-151.0,0.000189,2]
[389618399,1759750819294,-151.0,0.000189,2]
[389618400,1759750819316,-234.259348,0.000189,2]
[389618401,1759750819339,-151.0,0.000189,2]
[389618402,1759750819362,-151.0,0.000189,2]
[389618403,1759750819386,-172.963564,0.000189,2]
[389618404,1759750819409,-151.0,0.000189,2]
[389618405,1759750819434,-172.963564,0.000189,2]
[389618406,1759750819458,-151.0,0.000189,2]
[389618407,1759750819484,-172.963564,0.000189,2]
[389618408,1759750819506,-151.0,0.000189,2]
[389618409,1759750819530,-172.963564,0.000189,2]
[389618410,1759750819553,-151.951164,0.000189,2]
[389618411,1759750819575,-172.963564,0.000189,2]
[389618412,1759750819598,-172.963564,0.000189,2]
[389618413,1759750819623,-172.963564,0.000189,2]
[389618414,1759750819649,-172.963564,0.000189,2]
[389618415,1759750819672,-172.963564,0.000189,2]
[389618416,1759750819698,-172.963564,0.000189,2]
[389618417,1759750819721,-172.963564,0.000189,2]
[389618418,1759750819744,-172.963564,0.000189,2]
[389618419,1759750819766,-172.963564,0.000189,2]
[389618420,1759750819789,-172.963564,0.000189,2]
[389618421,1759750819811,-172.963564,0.000189,2]
[389618422,1759750819834,-172.963564,0.000189,2]
[389618423,1759750819859,-172.963564,0.000189,2]
[389618424,1759750819885,-172.963564,0.000189,2]
[389618425,1759750819910,-172.963564,0.000189,2]
[389618426,1759750819933,-172.963565,0.000189,2]
[389618427,1759750819957,-151.0,0.000189,2]
[389618428,1759750819980,-151.0,0.000189,2]
[389618429,1759750820004,-151.0,0.000189,2]
[389618430,1759750820030,-151.0,0.000189,2]
[389618431,1759750820053,-151.0,0.000189,2]
[389618432,1759750820077,-151.0,0.000189,2]
[389618433,1759750820102,-151.0,0.000189,2]
[389618434,1759750820126,-151.0,0.000189,2]
[389618435,1759750820149,-185.161988,0.000189,2]
[389618436,1759750820173,-151.0,0.000189,2]
[389618437,1759750820197,-151.0,0.000189,2]
[389618438,1759750820222,-151.0,0.000189,2]
[389618439,1759750820245,-151.0,0.000189,2]
[389618440,1759750820269,-151.0,0.000189,2]
[389618441,1759750820294,-151.0,0.000189,2]
[389618442,1759750820317,-151.0,0.000189,2]
[389618443,1759750820341,-151.0,0.000189,2]
[389618444,1759750820363,-151.0,0.000189,2]
[389618445,1759750820386,-151.0,0.000189,2]
[389618446,1759750820409,-151.0,0.000189,2]
[389618447,1759750820431,-151.0,0.000189,2]
[389618448,1759750820454,-151.0,0.000189,2]
[389618449,1759750820476,-151.0,0.000189,2]
[389618450,1759750820499,-151.0,0.000189,2]
[389618451,1759750820522,-151.0,0.000189,2]
[389618452,1759750820545,-151.0,0.000189,2]
[389618453,1759750820568,-151.0,0.000189,2]
[389618454,1759750820590,-151.0,0.000189,2]
[389618455,1759750820612,-151.0,0.000189,2]
[389618456,1759750820637,-151.0,0.000189,2]
[389618457,1759750820662,-183.70902328,0.000189,2]
[389618458,1759750820684,-151.0,0.000189,2]
[389618459,1759750820707,-151.0,0.000189,2]
[389618460,1759750820733,-221.540205,0.000189,2]
[389618461,1759750820757,-221.540205,0.000189,2]
[389618462,1759750820780,-221.540205,0.000189,2]
[389618463,1759750820803,-221.540205,0.000189,2]
[389618464,1759750820827,-221.540205,0.000189,2]
[389618465,1759750820852,-221.540205,0.000189,2]
[389618466,1759750820875,-221.540205,0.000189,2]
[389618467,1759750820900,-221.540205,0.000189,2]
[389618468,1759750820924,-221.540205,0.000189,2]
[389618469,1759750820947,-221.540205,0.000189,2]